fUSD/lending_fUSD_20251204
["ID","MTS","AMOUNT","RATE_DAILY","PERIOD"]
[396254885,1764889372654,162.175406,8.995e-05,2]
[396254886,1764889372868,162.175406,8.995e-05,2]
[396254887,1764889373027,162.175406,8.995e-05,2]
[396254888,1764889373312,162.175406,8.995e-05,2]
[396254889,1764889374341,162.175406,8.995e-05,2]
[396254890,1764889376444,150.780277,8.995e-05,2]
[396254891,1764889376746,150.780277,8.995e-05,2]
[396254892,1764889404049,200.0,0.00010959,2]
[396254893,1764889404430,200.0,0.00010959,2]
[396254894,1764889404656,200.0,0.00010959,2]
[396254900,1764889735949,899.27,0.00021,30]
[396254918,1764889833313,-150.0,0.000162,2]
[396254919,1764889833323,-150.0,0.000162,2]
[396254920,1764889833333,-46.9846993,0.000162,2]
[396254921,1764889833344,-103.0153007,0.000162,2]
[396254922,1764889833354,-150.0,0.000162,2]
[396254923,1764889833365,-150.0,0.000162,2]
[396254924,1764889833374,-178.54270679,0.00016953,2]
[396254925,1764889833384,-515.08540016,0.00016973,2]
[396254926,1764889833394,-335.42618551,0.00016973,2]
[396254927,1764889833404,-1200.0,0.00016973,2]
[396254928,1764889833414,-300.0,0.00016973,2]
[396254929,1764889833423,-575.03692986,0.00016974,2]
[396254930,1764889833459,-2512.71128789,0.00016974,2]
[396254931,1764889833520,-765.301545,0.00016974,2]
[396254932,1764889833602,-3114.79794371,0.00016974,2]
[396254933,1764889833618,-741.31484559,0.00016974,2]
[396254934,1764889833629,-341.17199996,0.00016974,2]
[396254935,1764889833640,-331.713,0.00016974,2]
[396254954,1764889838750,-16870.62764269,0.00016974,2]
[396254955,1764889838760,-151.0,0.0001699,2]
[396254956,1764889838769,-550.0,0.00016999,2]
[396254957,1764889838779,-10515.79784185,0.00017,2]
[396254958,1764889839295,-8326.2695249,0.00017,2]
[396254959,1764889839349,-11774.6051068,0.00017,2]
[396254960,1764889839367,-563.94852852,0.00017,2]
[396254963,1764889841534,-11.07537368,0.00017,2]
[396254968,1764889844347,-151.23940009,0.00017,2]
[396254981,1764890139881,31668.37578113,0.00025,120]
[396254997,1764890584677,-748.67669582,0.00016438,2]
[396255015,1764890735077,-150.0,0.000162,2]
[396255016,1764890735126,-150.0,0.000162,2]
[396255017,1764890735170,-136.25007986,0.000162,2]
[396255024,1764890765045,-280.66461369,0.000151,2]
[396255026,1764890767539,-290.83538631,0.000151,2]
[396255027,1764890772494,-327.27461369,0.000151,2]
[396255028,1764890774804,-256.18,0.000151,2]
[396255029,1764890777247,-157.66,0.000151,2]
[396255030,1764890792456,-232.31,0.00015,2]
[396255059,1764890896892,-544.03815169,0.00015,2]
[396255060,1764890896917,-2036.3682424,0.00015,2]
[396255061,1764890896941,-1200.0,0.00015099,2]
[396255062,1764890896965,-38020.60701755,0.000151,2]
[396255063,1764890896991,-166.66,0.00015795,2]
[396255064,1764890897016,-280.66461369,0.00015873,2]
[396255065,1764890897041,-1450.61593716,0.000159,2]
[396255066,1764890897066,-1301.04603751,0.00015936,2]
[396255067,1764890915125,-182.46438961,0.00014999,2]
[396255075,1764890991025,193.61,7.95e-05,2]
[396255076,1764890991481,193.61,8.368e-05,2]
[396255077,1764890991715,193.61,8.787e-05,2]
[396255078,1764890992083,193.61,9.205e-05,2]
[396255079,1764890992336,193.61,9.623e-05,2]
[396255080,1764890992772,193.61,0.00010042,2]
[396255081,1764890993027,193.61,0.0001046,2]
[396255082,1764890993230,193.61,0.00010879,2]
[396255083,1764890993475,193.61,0.00011297,2]
[396255084,1764890993636,193.61,0.00011715,2]
[396255085,1764890994093,193.61,0.00012134,2]
[396255086,1764890994260,193.61,0.00012552,2]
[396255087,1764890994516,193.61,0.00012971,2]
[396255088,1764890994925,-193.61,0.00013389,2]
[396255089,1764890994951,-13.89561039,0.00013808,2]
[396255090,1764890998039,-168.40127121,0.00013808,2]
[396255098,1764891020265,-11.3131184,0.00013808,2]
[396255099,1764891020287,-182.89952589,0.00014226,2]
[396255126,1764891034889,-10.71047411,0.00014226,2]
[396255127,1764891034900,-193.61,0.00014644,2]
[396255128,1764891034911,-931.02674064,0.00014999,2]
[396255129,1764891034921,-2701.35757696,0.00015,2]
[396255130,1764891034931,-193.61,0.00015063,2]
[396255131,1764891034941,-193.61,0.00015481,2]
[396255132,1764891034951,-193.61,0.000159,2]
[396255133,1764891034962,-745.91,0.00016102,2]
[396255134,1764891034971,-166.66,0.00016127,2]
[396255135,1764891034982,-298.0,0.0001619,2]
[396255136,1764891034992,-42353.7950419,0.00016191,2]
[396255137,1764891035002,-13.74992014,0.000162,2]
[396255138,1764891035012,-166.66,0.0001646,2]
[396255139,1764891035022,-250.0,0.000165,2]
[396255140,1764891035033,-992.00560801,0.00016648,2]
[396255141,1764891035043,-550.0,0.00016685,2]
[396255142,1764891035053,-730.74173852,0.00016686,2]
[396255143,1764891035065,-1020.54048194,0.00016686,2]
[396255144,1764891035078,-922.13592424,0.00016686,2]
[396255145,1764891035094,-1347.38172906,0.00016686,2]
[396255146,1764891035106,-606.31586874,0.00016686,2]
[396255147,1764891035146,-5332.97867924,0.00016686,2]
[396255148,1764891035158,-2598.08030783,0.00016686,2]
[396255149,1764891035209,-1008.33,0.00016686,2]
[396255150,1764891035224,-1805.88527043,0.00016686,2]
[396255151,1764891035234,-1971.06,0.00016686,2]
[396255152,1764891035244,-992.00560801,0.00016711,2]
[396255153,1764891035253,-248.76129282,0.00016712,3]
[396255154,1764891035265,-85.77870718,0.00016712,3]
[396255155,1764891035275,-248.45809282,0.00016734,2]
[396255156,1764891035286,-575.42190718,0.00016734,2]
[396255157,1764891035295,-992.00560801,0.00016774,2]
[396255158,1764891035305,-166.66,0.00016792,2]
[396255159,1764891035314,-992.00560801,0.00016837,2]
[396255160,1764891035323,-1852.42,0.00016869,2]
[396255161,1764891035332,-992.00560801,0.000169,2]
[396255162,1764891035342,-162.52615634,0.00016956,2]
[396255163,1764891035352,-545.9710143,0.00016956,2]
[396255164,1764891035361,-6204.86450472,0.00016956,2]
[396255165,1764891035370,-150.11136986,0.00016973,2]
[396255166,1764891035379,-496.7353852,0.00016973,2]
[396255167,1764891035388,-4487.35231802,0.0001698,2]
[396255217,1764891041258,-302.91205108,0.000169,2]
[396255218,1764891041269,-1517.79321767,0.000169,2]
[396255219,1764891041278,-2794.87245131,0.0001698,2]
[396255220,1764891041332,-733.75800295,0.0001698,2]
[396255221,1764891041343,-5388.23074535,0.0001698,2]
[396255222,1764891041559,-827.54292867,0.0001698,2]
[396255223,1764891041568,-300.0,0.00016986,4]
[396255224,1764891041577,-151.0,0.0001699,2]
[396255225,1764891041590,-151.0,0.00016997,2]
[396255226,1764891041599,-500.0,0.00016999,2]
[396255227,1764891041608,-500.0,0.00016999,2]
[396255228,1764891041616,-385.22536259,0.00016999,2]
[396255229,1764891041627,-500.0,0.00016999,2]
[396255230,1764891041636,-500.0,0.00016999,2]
[396255231,1764891041645,-500.0,0.00016999,2]
[396255232,1764891041654,-500.0,0.00016999,2]
[396255233,1764891041666,-500.0,0.00016999,2]
[396255234,1764891041675,-500.0,0.00016999,2]
[396255235,1764891041683,-581.18358748,0.00016999,2]
[396255236,1764891041696,-53.106175,0.00016999,2]
[396255237,1764891041706,-500.0,0.00016999,2]
[396255238,1764891041715,-500.0,0.00016999,2]
[396255239,1764891041724,-500.0,0.00016999,2]
[396255240,1764891041733,-500.0,0.00016999,2]
[396255241,1764891041742,-500.0,0.00016999,2]
[396255242,1764891041750,-500.0,0.00016999,2]
[396255243,1764891041759,-500.0,0.00016999,2]
[396255244,1764891041768,-500.0,0.00016999,2]
[396255245,1764891041777,-500.0,0.00016999,2]
[396255246,1764891041786,-500.0,0.00016999,2]
[396255247,1764891041795,-500.0,0.00016999,2]
[396255248,1764891041803,-500.0,0.00016999,2]
[396255249,1764891041812,-500.0,0.00016999,2]
[396255250,1764891041821,-500.0,0.00016999,2]
[396255251,1764891041830,-500.0,0.00016999,2]
[396255252,1764891041839,-500.0,0.00016999,2]
[396255253,1764891041848,-500.0,0.00016999,2]
[396255254,1764891041856,-500.0,0.00016999,2]
[396255255,1764891041865,-500.0,0.00016999,2]
[396255256,1764891042079,-500.0,0.00016999,2]
[396255257,1764891042090,-500.0,0.00016999,2]
[396255258,1764891042102,-500.0,0.00016999,2]
[396255259,1764891042113,-500.0,0.00016999,2]
[396255260,1764891042122,-500.0,0.00016999,2]
[396255261,1764891042133,-500.0,0.00016999,2]
[396255262,1764891042142,-500.0,0.00016999,2]
[396255263,1764891042152,-500.0,0.00016999,2]
[396255264,1764891042162,-500.0,0.00016999,2]
[396255265,1764891042175,-500.0,0.00016999,2]
[396255266,1764891042186,-500.0,0.00016999,2]
[396255267,1764891042197,-304.15354301,0.00016999,2]
[396255268,1764891042207,-11549.69777937,0.00017,2]
[396255269,1764891042263,-451.14186505,0.00017,2]
[396255270,1764891042275,-6353.2581718,0.00017,2]
[396255271,1764891042288,-3531.99658436,0.00017,2]
[396255272,1764891042941,-5017.89331888,0.00017,2]
[396255273,1764891043009,-19579.25225126,0.00017,2]
[396255274,1764891043019,-266.08715983,0.00017,2]
[396255275,1764891043028,-72580.68507223,0.00017,2]
[396255276,1764891043039,-35954.58494366,0.00017,2]
[396255280,1764891044828,-271.37002482,0.00017,2]
[396255281,1764891044899,-1865.2,0.00017,2]
[396255282,1764891045041,-847911.55192884,0.00017,2]
[396255283,1764891045053,-7013.97643681,0.00017,2]
[396255284,1764891045062,-600.0,0.00017,2]
[396255285,1764891045072,-1820.70526869,0.00017011,2]
[396255286,1764891045082,-1860.84,0.00017056,2]
[396255287,1764891045093,-6204.86450471,0.00017061,2]
[396255288,1764891045102,-545.97101427,0.00017113,2]
[396255289,1764891045111,-166.66,0.00017125,2]
[396255290,1764891045120,-6204.86450471,0.00017166,2]
[396255291,1764891045129,-369.54,0.0001726,4]
[396255292,1764891045138,-545.97101427,0.00017271,2]
[396255293,1764891045147,-6204.86450471,0.00017271,2]
[396255294,1764891045156,-170.22,0.00017281,2]
[396255295,1764891045165,-229.86739996,0.00017285,2]
[396255296,1764891045175,-6204.86450471,0.00017376,2]
[396255297,1764891045184,-545.97101427,0.00017428,2]
[396255298,1764891045194,-184.24,0.00017431,2]
[396255299,1764891045203,-166.66,0.00017457,2]
[396255300,1764891045213,-215.0738,0.00017466,2]
[396255301,1764891045222,-54680.47,0.00017477,2]
[396255302,1764891045231,-6204.86450471,0.0001748,2]
[396255303,1764891045240,-151.0,0.00017538,2]
[396255304,1764891045249,-600.0,0.00017548,2]
[396255305,1764891045258,-545.97101427,0.00017585,2]
[396255306,1764891045267,-6204.86450471,0.00017585,2]
[396255307,1764891045277,-6204.86450471,0.0001769,2]
[396255308,1764891045287,-545.97101427,0.00017743,2]
[396255309,1764891045296,-398.34657575,0.00017761,2]
[396255310,1764891045305,-6204.86450471,0.00017795,2]
[396255311,1764891045318,-452.0,0.00017803,2]
[396255312,1764891045327,-300.0,0.00017808,4]
[396255313,1764891045336,-2964.58,0.00017851,2]
[396255314,1764891045346,-1094.70620742,0.000179,2]
[396255315,1764891045356,-545.97101427,0.000179,2]
[396255316,1764891045365,-292.75220898,0.000179,2]
[396255317,1764891045375,-6204.86450471,0.000179,2]
[396255318,1764891045384,-882.51661156,0.000179,2]
[396255319,1764891045393,-442.70565914,0.000179,2]
[396255320,1764891045403,-1530.47564701,0.00017962,2]
[396255321,1764891045412,-9520.0,0.00017973,2]
[396255322,1764891045422,-151.0,0.00017997,2]
[396255323,1764891045431,-470.82570326,0.00017999,5]
[396255324,1764891045441,-300.0,0.00017999,2]
[396255325,1764891045450,-300.0,0.00017999,2]
[396255326,1764891045461,-500.0,0.00017999,2]
[396255327,1764891045474,-500.0,0.00017999,2]
[396255328,1764891045483,-300.0,0.00017999,2]
[396255329,1764891045493,-502.84,0.00017999,2]
[396255330,1764891045503,-249.25554546,0.00017999,5]
[396255331,1764891045512,-150.0,0.00017999,5]
[396255332,1764891045522,-150.0,0.00017999,5]
[396255333,1764891045531,-150.0,0.00017999,5]
[396255334,1764891045540,-150.0,0.00017999,5]
[396255335,1764891045550,-300.0,0.00017999,2]
[396255336,1764891045560,-500.0,0.00017999,5]
[396255337,1764891045569,-500.0,0.00017999,2]
[396255338,1764891045579,-374.29,0.00017999,2]
[396255339,1764891045594,-500.0,0.00017999,5]
[396255340,1764891045603,-150.0,0.00017999,5]
[396255341,1764891045614,-500.0,0.00017999,5]
[396255342,1764891045624,-500.0,0.00017999,5]
[396255343,1764891045634,-500.0,0.00017999,2]
[396255344,1764891045644,-500.0,0.00017999,2]
[396255345,1764891045653,-500.0,0.00017999,2]
[396255346,1764891045665,-500.0,0.00017999,3]
[396255347,1764891045675,-500.0,0.00017999,4]
[396255348,1764891045685,-500.0,0.00017999,5]
[396255349,1764891045695,-500.0,0.00017999,6]
[396255350,1764891045704,-500.0,0.00017999,7]
[396255351,1764891045713,-500.0,0.00017999,8]
[396255352,1764891045723,-610.04664437,0.00017999,9]
[396255353,1764891045732,-150.0,0.00017999,5]
[396255354,1764891045742,-150.0,0.00017999,2]
[396255355,1764891045751,-150.0,0.00017999,5]
[396255356,1764891045760,-150.0,0.00017999,5]
[396255357,1764891045769,-500.0,0.00017999,5]
[396255358,1764891045778,-500.0,0.00017999,5]
[396255359,1764891045788,-150.0,0.00017999,5]
[396255360,1764891045797,-500.0,0.00017999,5]
[396255361,1764891045806,-457.71879836,0.00017999,2]
[396255362,1764891045815,-500.0,0.00017999,2]
[396255363,1764891045825,-635.8692438,0.00017999,2]
[396255364,1764891045835,-500.0,0.00017999,2]
[396255365,1764891045844,-500.0,0.00017999,2]
[396255366,1764891045854,-473.28520892,0.00017999,2]
[396255367,1764891045864,-191.38741442,0.00018,2]
[396255368,1764891045875,-150.0,0.00018,2]
[396255369,1764891045884,-6342784.10778231,0.00018,2]
[396255370,1764891045895,-6833709.82148133,0.00018,2]
[396255371,1764891046051,-512.52843765,0.00018,2]
[396255372,1764891046107,-1500.0,0.00018,2]
[396255373,1764891046121,-980.87251112,0.00018,2]
[396255374,1764891046133,-13441.71464927,0.00018,2]
[396255375,1764891046145,-47794.29395456,0.00018,2]
[396255376,1764891046240,-1455.83665154,0.00018,2]
[396255377,1764891046251,-6316.52133088,0.00018,2]
[396255378,1764891046263,-2946.60454692,0.00018,2]
[396255381,1764891048787,-594.01455778,0.00017122,2]
[396255382,1764891048799,-1108.88047643,0.00017122,2]
[396255383,1764891048811,-117.81023448,0.00017122,2]
[396255384,1764891048820,-1231.74923936,0.00018,2]
[396255385,1764891048832,-1058.32946893,0.00018,2]
[396255386,1764891048864,-537.47173744,0.00018,2]
[396255387,1764891048942,-241600.53010266,0.00018,2]
[396255388,1764891048976,-896.50883518,0.00018,2]
[396255389,1764891048987,-10335.26202311,0.00018,2]
[396255390,1764891048998,-2049.20648709,0.00018,2]
[396255391,1764891049009,-634.43867938,0.00018,2]
[396255392,1764891049068,-1161.0,0.00018,2]
[396255393,1764891049079,-1478.73705094,0.00018,2]
[396255394,1764891049091,-508.01591434,0.00018,2]
[396255395,1764891049102,-2244.59707969,0.00018,2]
[396255396,1764891049113,-3678.94705538,0.00018,2]
[396255397,1764891049125,-5265.3587318,0.00018,2]
[396255398,1764891049161,-500.0,0.00018,2]
[396255399,1764891049235,-84296.28051454,0.00018,2]
[396255400,1764891051695,-474.356646,0.00018,2]
[396255401,1764891051725,-434.01410327,0.00018,2]
[396255402,1764891051736,-738.4500015,0.00018,2]
[396255403,1764891051749,-1893.12,0.00018,2]
[396255404,1764891051760,-467.88428273,0.00018,2]
[396255405,1764891051834,-533.76,0.00018,2]
[396255406,1764891051847,-2196.92682387,0.00018,2]
[396255407,1764891051858,-12052.55909,0.00018,2]
[396255408,1764891051870,-4142.028878,0.00018,2]
[396255409,1764891051882,-4678.23899982,0.00018,2]
[396255410,1764891051895,-1236.613284,0.00018,2]
[396255411,1764891051908,-5452.48989456,0.00018,2]
[396255412,1764891051919,-456.93,0.00018,2]
[396255413,1764891051931,-387.5,0.00018,2]
[396255414,1764891051942,-2523.9045,0.00018,2]
[396255415,1764891051954,-1907.31,0.00018,2]
[396255416,1764891051965,-732.10516232,0.00018,2]
[396255417,1764891051977,-874.69809617,0.00018,2]
[396255418,1764891051989,-408.51155989,0.00018,2]
[396255419,1764891052002,-332980.89878933,0.00018,2]
[396255420,1764891052013,-6769.99999229,0.00018,2]
[396255421,1764891052046,-216829.7325998,0.00018,2]
[396255422,1764891052098,-1881.54106507,0.00018,2]
[396255423,1764891052134,-4687.99213867,0.00018,2]
[396255424,1764891052147,-940.76339569,0.00018,2]
[396255425,1764891052159,-3800.0,0.00018,2]
[396255426,1764891052170,-1576.27886367,0.00018,2]
[396255427,1764891052181,-409.85945707,0.00018,2]
[396255428,1764891052216,-11430.37282713,0.00018,2]
[396255429,1764891052357,-42044.94633919,0.00018,2]
[396255430,1764891052368,-2433.92932378,0.00018,2]
[396255431,1764891052382,-453.0,0.00018,2]
[396255550,1764891338590,256.95498335,0.00025,120]
[396255551,1764891342919,151.0,0.00025,120]
[396255552,1764891352958,151.0,0.00025,120]
[396255589,1764891923402,-239.13606835,0.00013699,2]
[396255606,1764892233320,1000.0,0.00025,120]
[396255648,1764892241039,-32.73393165,0.00013699,2]
[396255649,1764892241050,-1512.0,0.00016411,2]
[396255650,1764892241059,-300.0,0.00016437,2]
[396255651,1764892241068,-263.28549437,0.00016437,2]
[396255652,1764892241080,-936.71450563,0.00016437,2]
[396255653,1764892241091,-1432.66784695,0.00016438,2]
[396255654,1764892241151,-868.46461215,0.00016438,2]
[396255655,1764892241196,-5962.7075409,0.00016438,2]
[396255656,1764892241208,-621.78829552,0.00016716,2]
[396255657,1764892241217,-1900.0,0.00016716,2]
[396255658,1764892241227,-450.0,0.00016716,2]
[396255659,1764892241238,-334.54729592,0.00016716,2]
[396255660,1764892241247,-250.0,0.0001686,2]
[396255661,1764892241256,-250.0,0.00016887,2]
[396255662,1764892241266,-150.10993778,0.00016973,2]
[396255663,1764892241275,-435.48613283,0.00016973,2]
[396255664,1764892241284,-500.0,0.00016999,2]
[396255665,1764892241294,-501.67227123,0.00016999,2]
[396255666,1764892241303,-261.49659351,0.00017,2]
[396255667,1764892241312,-132.02733115,0.0001701,2]
[396255668,1764892241383,-67.97266885,0.0001701,2]
[396255669,1764892241393,-931.02733115,0.00017098,2]
[396255677,1764892247410,-68.97266885,0.00017098,2]
[396255678,1764892247420,-291.50453412,0.00017098,2]
[396255679,1764892247515,-708.49546588,0.00017098,2]
[396255680,1764892247525,-1000.0,0.00017098,2]
[396255681,1764892247535,-184.98453412,0.00017259,2]
[396255682,1764892247547,-815.01546588,0.00017259,2]
[396255683,1764892247558,-1900.0,0.00017264,2]
[396255684,1764892247567,-200.0,0.00017298,2]
[396255685,1764892247576,-150.0,0.00017396,2]
[396255686,1764892247586,-166.66,0.00017485,2]
[396255687,1764892247596,-1900.0,0.00017812,2]
[396255688,1764892247605,-2017.42926688,0.0001788,2]
[396255689,1764892247615,-1267.678,0.000179,2]
[396255690,1764892247624,-187.2,0.000179,2]
[396255691,1764892247634,-293.17034015,0.000179,2]
[396255692,1764892247643,-162.52615634,0.000179,2]
[396255693,1764892247653,-1274.49368811,0.000179,2]
[396255694,1764892247662,-420.0,0.00017964,2]
[396255695,1764892247672,-841.94025525,0.00017977,2]
[396255696,1764892247682,-502.84,0.00017978,2]
[396255697,1764892247691,-721.12765535,0.00017978,2]
[396255698,1764892247700,-151.0,0.00017978,2]
[396255699,1764892247710,-1000.0,0.00017978,2]
[396255700,1764892247719,-1000.0,0.00017978,2]
[396255701,1764892247729,-1000.0,0.00017978,2]
[396255702,1764892247739,-1000.0,0.00017978,2]
[396255703,1764892247749,-574.12855637,0.00017978,2]
[396255704,1764892247759,-59.07293281,0.00017978,2]
[396255705,1764892247770,-940.92706719,0.00017978,2]
[396255706,1764892247779,-1000.0,0.00017978,2]
[396255707,1764892247790,-1000.0,0.00017978,2]
[396255708,1764892247800,-1000.0,0.00017978,2]
[396255709,1764892247809,-1000.0,0.00017978,2]
[396255710,1764892247818,-1000.0,0.00017978,2]
[396255711,1764892247829,-1000.0,0.00017978,2]
[396255712,1764892247840,-151.0,0.00017997,2]
[396255713,1764892247850,-151.0,0.00017997,2]
[396255714,1764892247860,-151.0,0.00017997,2]
[396255715,1764892247870,-566.07293281,0.00017998,2]
[396255716,1764892247885,-311.74846854,0.00017998,2]
[396255717,1764892247947,-122.17859865,0.00017998,2]
[396255718,1764892247957,-344.59959084,0.00017999,2]
[396255719,1764892248014,-1512.0,0.00016411,2]
[396255720,1764892248023,-155.53879369,0.00017999,2]
[396255721,1764892248038,-356.71,0.00017999,2]
[396255722,1764892248051,-741.25880839,0.00017999,2]
[396255723,1764892248175,-1684.65757154,0.00017999,2]
[396255725,1764892250651,-1165.4306805,0.00017999,2]
[396255726,1764892251058,-966.05300134,0.00017999,2]
[396255727,1764892251068,-9691.9834562,0.00017999,2]
[396255728,1764892251079,-3051.330785,0.00017999,2]
[396255729,1764892251090,-500.0,0.00017999,2]
[396255730,1764892251099,-150.0,0.00017999,2]
[396255731,1764892251108,-500.0,0.00017999,2]
[396255732,1764892251117,-500.0,0.00017999,2]
[396255733,1764892251126,-500.0,0.00017999,2]
[396255734,1764892251136,-150.0,0.00017999,2]
[396255735,1764892251145,-150.0,0.00017999,2]
[396255736,1764892251155,-150.0,0.00017999,2]
[396255737,1764892251165,-150.0,0.00017999,2]
[396255738,1764892251175,-150.0,0.00017999,2]
[396255739,1764892251184,-500.0,0.00017999,2]
[396255740,1764892251194,-500.0,0.00017999,2]
[396255741,1764892251203,-500.0,0.00017999,2]
[396255742,1764892251212,-500.0,0.00017999,2]
[396255743,1764892251221,-500.0,0.00017999,2]
[396255744,1764892251231,-500.0,0.00017999,2]
[396255745,1764892251239,-500.0,0.00017999,2]
[396255746,1764892251248,-500.0,0.00017999,2]
[396255747,1764892251257,-500.0,0.00017999,2]
[396255748,1764892251267,-613.42897625,0.00017999,2]
[396255749,1764892251275,-500.0,0.00017999,2]
[396255750,1764892251285,-500.0,0.00017999,2]
[396255751,1764892251294,-500.0,0.00017999,2]
[396255752,1764892251303,-218.84483698,0.00017999,2]
[396255753,1764892251312,-500.0,0.00017999,2]
[396255754,1764892251321,-500.0,0.00017999,2]
[396255755,1764892251331,-500.0,0.00017999,2]
[396255756,1764892251341,-500.0,0.00017999,2]
[396255757,1764892251351,-500.0,0.00017999,2]
[396255758,1764892251360,-500.0,0.00017999,2]
[396255759,1764892251369,-500.0,0.00017999,2]
[396255760,1764892251378,-500.0,0.00017999,2]
[396255761,1764892251388,-6544.0,0.00018,2]
[396255762,1764892251398,-2384162.87609891,0.00018,2]
[396255763,1764892251407,-266.08715983,0.00018,2]
[396255764,1764892251416,-151.92540351,0.00018,2]
[396255765,1764892251425,-150.0,0.00018,2]
[396255766,1764892251434,-150.0,0.00018,2]
[396255767,1764892251444,-150.0,0.00018,2]
[396255768,1764892251453,-260.04113565,0.00018,2]
[396255769,1764892251462,-150.0,0.00018,2]
[396255770,1764892251471,-1680.0,0.00018053,2]
[396255771,1764892251481,-166.66,0.00018063,2]
[396255772,1764892251491,-450.0,0.00018085,2]
[396255773,1764892251500,-600.0,0.00018096,2]
[396255774,1764892251509,-500.0,0.00018136,2]
[396255775,1764892251519,-150.0,0.00018136,2]
[396255776,1764892251528,-500.0,0.00018136,2]
[396255777,1764892251538,-500.0,0.00018136,2]
[396255778,1764892251548,-500.0,0.00018136,2]
[396255779,1764892251557,-150.0,0.00018136,2]
[396255780,1764892251567,-150.0,0.00018136,2]
[396255781,1764892251576,-150.0,0.00018136,2]
[396255782,1764892251586,-150.0,0.00018136,2]
[396255783,1764892251595,-150.0,0.00018136,2]
[396255784,1764892251604,-500.0,0.00018136,2]
[396255785,1764892251614,-150.0,0.00018137,2]
[396255786,1764892251623,-150.0,0.00018137,2]
[396255787,1764892251633,-150.0,0.00018137,2]
[396255788,1764892251642,-156.24853166,0.00018137,2]
[396255789,1764892251652,-9450.4090705,0.00018242,2]
[396255790,1764892251661,-502.84,0.00018252,2]
[396255791,1764892251670,-500.0,0.00018273,2]
[396255792,1764892251679,-150.0,0.00018273,2]
[396255793,1764892251689,-500.0,0.00018273,2]
[396255794,1764892251698,-500.0,0.00018273,2]
[396255795,1764892251707,-217.35760016,0.00018273,2]
[396255796,1764892251717,-150.0,0.00018273,2]
[396255797,1764892251726,-283.95017183,0.00018273,2]
[396255798,1764892251735,-150.0,0.00018273,2]
[396255799,1764892251745,-150.0,0.00018273,2]
[396255800,1764892251755,-500.0,0.00018273,2]
[396255801,1764892251764,-266.85474904,0.00018274,2]
[396255802,1764892251774,-150.0,0.00018274,2]
[396255803,1764892251783,-1900.0,0.0001836,2]
[396255804,1764892251792,-500.0,0.0001841,2]
[396255805,1764892251801,-150.0,0.0001841,2]
[396255806,1764892251810,-459.0,0.0001841,2]
[396255807,1764892251819,-500.0,0.0001841,2]
[396255808,1764892251828,-150.0,0.0001841,2]
[396255809,1764892251837,-150.0,0.0001841,2]
[396255810,1764892251846,-200.0,0.0001841,2]
[396255811,1764892251856,-500.0,0.0001841,2]
[396255812,1764892251865,-150.0,0.00018411,2]
[396255813,1764892251874,-502.84,0.00018526,2]
[396255814,1764892251883,-595.37131296,0.00018526,2]
[396255815,1764892251892,-500.0,0.00018547,2]
[396255816,1764892251902,-250.0,0.00018547,2]
[396255817,1764892251912,-500.0,0.00018547,2]
[396255818,1764892251921,-227.14547934,0.00018547,2]
[396255819,1764892251930,-250.0,0.00018547,2]
[396255820,1764892251940,-500.0,0.00018547,2]
[396255821,1764892251949,-150.0,0.00018548,2]
[396255822,1764892251958,-166.66,0.0001864,2]